fUST/lending_fUST_20250619
["ID","MTS","AMOUNT","RATE_DAILY","PERIOD"]
[366622354,1750339709893,227.83099575,0.0001,2]
[366622355,1750339709918,53.32743682,0.0001,2]
[366622363,1750339714975,7082.80543201,0.00017,2]
[366622365,1750339724146,668.50326462,0.0002,2]
[366622366,1750339724782,500.0,0.00021164,2]
[366622387,1750339755248,977.04,0.00020783,2]
[366622402,1750339784040,5000.0,0.00025148,60]
[366622403,1750339784989,241.0512,0.00020781,2]
[366622408,1750339794971,477.27266655,0.00020421,2]
[366622409,1750339794995,316.00899975,0.00020421,2]
[366622465,1750339837604,-300.0,0.0002128,2]
[366622466,1750339837614,-230.0259007,0.00021281,2]
[366622467,1750339837623,-160.0,0.00021281,2]
[366622468,1750339837633,-160.0,0.00021281,2]
[366622469,1750339837642,-160.0,0.00021281,2]
[366622470,1750339837652,-160.0,0.00021281,2]
[366622471,1750339837661,-424.78309573,0.00021281,2]
[366622472,1750339837670,-836.1357872,0.00021281,2]
[366622473,1750339837680,-160.0,0.00021281,2]
[366622474,1750339837689,-160.0,0.00021281,2]
[366622475,1750339837698,-213.47708638,0.00021281,2]
[366622476,1750339837708,-5607.91073168,0.00021281,2]
[366622477,1750339837720,-6936.77457705,0.00021281,2]
[366622478,1750339837730,-207.4,0.00021489,2]
[366622479,1750339837739,-168.0,0.00021586,2]
[366622480,1750339837749,-168.0,0.00021631,2]
[366622481,1750339837759,-168.0,0.00021745,2]
[366622482,1750339837769,-1335.92675122,0.000219,6]
[366622484,1750339837779,-255.4406849,0.00021916,2]
[366622485,1750339837789,-460.0,0.00021917,6]
[366622486,1750339837809,-605.08482375,0.00021917,6]
[366622487,1750339837819,-460.0,0.00021917,6]
[366622488,1750339837828,-460.0,0.00021917,6]
[366622489,1750339837839,-1411.01,0.00021917,6]
[366622490,1750339837849,-460.0,0.00021917,6]
[366622491,1750339837859,-460.0,0.00021917,6]
[366622492,1750339837869,-517.78,0.00021917,6]
[366622493,1750339837879,-460.0,0.00021917,6]
[366622494,1750339837889,-460.0,0.00021917,6]
[366622495,1750339837899,-460.0,0.00021917,6]
[366622496,1750339837909,-460.0,0.00021917,6]
[366622497,1750339837921,-460.0,0.00021917,6]
[366622498,1750339837931,-460.0,0.00021917,6]
[366622499,1750339837941,-911.9,0.00021917,6]
[366622500,1750339837952,-1162.92,0.00021917,6]
[366622501,1750339837963,-460.0,0.00021917,6]
[366622502,1750339837974,-460.0,0.00021917,6]
[366622504,1750339837984,-862.85,0.00021917,6]
[366622505,1750339837995,-460.0,0.00021917,6]
[366622506,1750339838005,-460.0,0.00021917,6]
[366622507,1750339838016,-460.0,0.00021917,6]
[366622508,1750339838026,-540.60576201,0.00021917,6]
[366622509,1750339838036,-1092.06,0.00021917,6]
[366622510,1750339838046,-183.71,0.00021917,6]
[366622511,1750339838056,-460.0,0.00021917,6]
[366622512,1750339838066,-460.0,0.00021917,6]
[366622513,1750339838076,-854.06,0.00021917,6]
[366622514,1750339838087,-460.0,0.00021917,6]
[366622515,1750339838097,-1034.52,0.00021917,6]
[366622516,1750339838107,-460.0,0.00021917,6]
[366622517,1750339838117,-460.0,0.00021917,6]
[366622518,1750339838127,-460.0,0.00021917,6]
[366622519,1750339838137,-460.0,0.00021917,6]
[366622520,1750339838146,-674.13,0.00021917,6]
[366622521,1750339838156,-460.0,0.00021917,6]
[366622522,1750339838166,-618.27,0.00021917,2]
[366622523,1750339838176,-460.0,0.00021917,6]
[366622524,1750339838186,-533.4,0.00021917,6]
[366622525,1750339838196,-460.0,0.00021917,6]
[366622526,1750339838206,-460.0,0.00021917,6]
[366622527,1750339838216,-500.0,0.00022,2]
[366622528,1750339838225,-174.0,0.00022,2]
[366622529,1750339838235,-168.0,0.00022027,2]
[366622530,1750339838245,-1335.92675114,0.00022038,6]
[366622531,1750339838255,-502.94341378,0.0002206,2]
[366622532,1750339838266,-500.0,0.00022076,2]
[366622533,1750339838276,-500.0,0.00022076,2]
[366622534,1750339838285,-500.0,0.00022076,2]
[366622535,1750339838294,-500.0,0.00022076,2]
[366622536,1750339838304,-500.0,0.00022076,2]
[366622537,1750339838313,-500.84234029,0.00022076,2]
[366622538,1750339838323,-200.0,0.00022088,30]
[366622539,1750339838333,-200.0,0.00022088,30]
[366622540,1750339838342,-200.0,0.00022088,30]
[366622541,1750339838352,-200.0,0.00022088,30]
[366622542,1750339838362,-160.0,0.00022133,3]
[366622543,1750339838371,-1335.92675114,0.00022176,6]
[366622544,1750339838381,-397.58361318,0.00022189,2]
[366622545,1750339838391,-574.3480718,0.00022189,2]
[366622546,1750339838400,-574.3480718,0.00022189,2]
[366622547,1750339838409,-574.3480718,0.00022189,2]
[366622548,1750339838422,-574.3480718,0.00022189,2]
[366622549,1750339838432,-574.3480718,0.00022189,2]
[366622550,1750339838441,-574.3480718,0.00022189,2]
[366622551,1750339838450,-574.3480718,0.00022189,2]
[366622552,1750339838460,-574.3480718,0.00022189,2]
[366622553,1750339838471,-574.3480718,0.00022189,2]
[366622554,1750339838481,-574.3480718,0.00022189,2]
[366622555,1750339838491,-574.3480718,0.00022189,2]
[366622556,1750339838503,-574.3480718,0.00022189,2]
[366622557,1750339838512,-574.3480718,0.00022189,2]
[366622558,1750339838524,-574.3480718,0.00022189,2]
[366622560,1750339838534,-500.0,0.0002219,2]
[366622562,1750339838543,-460.0,0.00022191,6]
[366622564,1750339838552,-460.0,0.00022191,6]
[366622566,1750339838562,-1411.01,0.00022191,6]
[366622568,1750339838571,-445.04611161,0.00022191,6]
[366622569,1750339838581,-460.0,0.00022191,6]
[366622570,1750339838590,-517.78,0.00022191,6]
[366622571,1750339838600,-460.0,0.00022191,6]
[366622572,1750339838609,-460.0,0.00022191,6]
[366622573,1750339838619,-518.22030973,0.00022191,6]
[366622574,1750339838629,-460.0,0.00022191,6]
[366622575,1750339838639,-460.0,0.00022191,6]
[366622576,1750339838650,-460.0,0.00022191,6]
[366622577,1750339838660,-911.9,0.00022191,6]
[366622578,1750339838669,-1162.92,0.00022191,6]
[366622579,1750339838679,-460.0,0.00022191,6]
[366622580,1750339838688,-542.64999909,0.00022191,6]
[366622581,1750339838698,-862.85,0.00022191,6]
[366622582,1750339838708,-496.83028718,0.00022191,6]
[366622583,1750339838718,-460.0,0.00022191,6]
[366622584,1750339838728,-460.0,0.00022191,6]
[366622585,1750339838737,-1092.06,0.00022191,6]
[366622586,1750339838747,-596.64793152,0.00022191,6]
[366622587,1750339838757,-460.0,0.00022191,6]
[366622588,1750339838766,-854.06,0.00022191,6]
[366622589,1750339838776,-460.0,0.00022191,6]
[366622590,1750339838786,-1034.52,0.00022191,6]
[366622591,1750339838796,-460.0,0.00022191,6]
[366622592,1750339838805,-460.0,0.00022191,6]
[366622593,1750339838814,-460.0,0.00022191,6]
[366622594,1750339838823,-674.13,0.00022191,6]
[366622595,1750339838834,-460.0,0.00022191,6]
[366622596,1750339838844,-618.27,0.00022191,2]
[366622597,1750339838854,-460.0,0.00022191,6]
[366622598,1750339838864,-533.4,0.00022191,6]
[366622599,1750339838873,-460.0,0.00022191,6]
[366622600,1750339838884,-168.0,0.00022205,2]
[366622601,1750339838894,-654.0,0.0002223,2]
[366622602,1750339838903,-2160.0,0.0002223,2]
[366622603,1750339838913,-406.0,0.0002223,2]
[366622604,1750339838926,-168.0,0.00022253,2]
[366622605,1750339838935,-1335.92675114,0.00022314,7]
[366622606,1750339838945,-500.0,0.00022368,2]
[366622607,1750339838955,-500.0,0.00022368,2]
[366622608,1750339838967,-500.0,0.00022368,2]
[366622609,1750339838977,-500.0,0.00022384,2]
[366622610,1750339838987,-267.93345251,0.00022384,2]
[366622611,1750339838996,-500.0,0.00022386,2]
[366622612,1750339839007,-500.0,0.00022386,2]
[366622613,1750339839016,-500.0,0.00022389,2]
[366622614,1750339839026,-620.71222971,0.00022389,2]
[366622615,1750339839036,-500.0,0.00022389,2]
[366622616,1750339839046,-500.0,0.00022394,2]
[366622617,1750339839055,-250.51657066,0.00022394,2]
[366622618,1750339839066,-500.0,0.00022394,2]
[366622619,1750339839076,-500.0,0.00022394,2]
[366622620,1750339839085,-257.87472151,0.00022394,2]
[366622621,1750339839095,-500.0,0.00022405,2]
[366622622,1750339839105,-500.0,0.00022405,2]
[366622623,1750339839114,-1335.92675114,0.00022452,7]
[366622624,1750339839124,-500.0,0.00022452,2]
[366622625,1750339839133,-389.79435841,0.00022452,2]
[366622626,1750339839143,-500.0,0.00022452,2]
[366622627,1750339839153,-500.0,0.00022452,2]
[366622628,1750339839163,-500.0,0.00022452,2]
[366622629,1750339839172,-500.0,0.00022452,2]
[366622630,1750339839182,-500.0,0.00022452,2]
[366622631,1750339839191,-160.0,0.00022464,2]
[366622632,1750339839201,-460.0,0.00022465,6]
[366622633,1750339839210,-460.0,0.00022465,6]
[366622634,1750339839221,-1411.01,0.00022465,6]
[366622635,1750339839231,-460.0,0.00022465,6]
[366622636,1750339839240,-517.78,0.00022465,6]
[366622637,1750339839250,-460.0,0.00022465,6]
[366622638,1750339839260,-460.0,0.00022465,6]
[366622639,1750339839269,-460.0,0.00022465,6]
[366622640,1750339839279,-460.0,0.00022465,6]
[366622641,1750339839289,-460.0,0.00022465,6]
[366622642,1750339839299,-911.9,0.00022465,6]
[366622643,1750339839308,-1162.92,0.00022465,6]
[366622644,1750339839318,-460.0,0.00022465,6]
[366622645,1750339839328,-862.85,0.00022465,6]
[366622646,1750339839338,-460.0,0.00022465,6]
[366622647,1750339839348,-460.0,0.00022465,6]
[366622648,1750339839358,-1092.06,0.00022465,6]
[366622649,1750339839367,-460.0,0.00022465,6]
[366622650,1750339839377,-854.06,0.00022465,6]
[366622651,1750339839386,-460.0,0.00022465,6]
[366622652,1750339839396,-1034.52,0.00022465,6]
[366622653,1750339839406,-460.0,0.00022465,6]
[366622654,1750339839416,-460.0,0.00022465,6]
[366622655,1750339839426,-460.0,0.00022465,6]
[366622656,1750339839436,-674.13,0.00022465,6]
[366622657,1750339839446,-595.51269433,0.00022465,6]
[366622658,1750339839457,-618.27,0.00022465,2]
[366622659,1750339839467,-460.0,0.00022465,6]
[366622660,1750339839477,-533.4,0.00022465,6]
[366622661,1750339839486,-460.0,0.00022465,6]
[366622662,1750339839497,-500.0,0.00022471,2]
[366622663,1750339839506,-500.0,0.00022471,2]
[366622664,1750339839516,-501.58342673,0.00022471,2]
[366622665,1750339839526,-500.0,0.00022471,2]
[366622666,1750339839535,-500.0,0.00022471,2]
[366622667,1750339839546,-500.0,0.00022471,2]
[366622668,1750339839555,-166.0208002,0.00022471,2]
[366622669,1750339839565,-500.37034773,0.00022471,2]
[366622670,1750339839574,-500.0,0.00022471,2]
[366622671,1750339839584,-502.73075795,0.00022471,2]
[366622672,1750339839594,-500.0,0.00022471,2]
[366622673,1750339839604,-500.0,0.00022478,2]
[366622674,1750339839613,-500.0,0.00022478,2]
[366622675,1750339839623,-420.0,0.00022506,2]
[366622676,1750339839633,-526.5849285,0.0002252,5]
[366622677,1750339839643,-1335.92675114,0.0002259,7]
[366622678,1750339839654,-1000.0,0.00022624,2]
[366622679,1750339839665,-1010.2110016,0.00022624,2]
[366622680,1750339839675,-500.0,0.00022624,2]
[366622681,1750339839685,-380.07404203,0.00022624,2]
[366622682,1750339839694,-168.0,0.00022628,2]
[366622683,1750339839704,-503.74092231,0.00022726,2]
[366622684,1750339839714,-1335.92675114,0.00022728,7]
[366622685,1750339839726,-171.27,0.00022729,3]
[366622686,1750339839736,-513.82,0.00022729,3]
[366622687,1750339839747,-500.0,0.00022738,3]
[366622688,1750339839758,-460.0,0.00022739,6]
[366622689,1750339839767,-460.0,0.00022739,6]
[366622690,1750339839778,-1411.01,0.00022739,6]
[366622691,1750339839797,-460.0,0.00022739,6]
[366622692,1750339839807,-517.78,0.00022739,6]
[366622693,1750339839816,-460.0,0.00022739,6]
[366622694,1750339839826,-460.0,0.00022739,6]
[366622695,1750339839836,-460.0,0.00022739,6]
[366622696,1750339839846,-460.0,0.00022739,6]
[366622697,1750339839856,-460.0,0.00022739,6]
[366622698,1750339839866,-911.9,0.00022739,6]
[366622699,1750339839876,-1162.92,0.00022739,6]
[366622700,1750339839886,-460.0,0.00022739,6]
[366622701,1750339839896,-862.85,0.00022739,6]
[366622702,1750339839906,-460.0,0.00022739,6]
[366622703,1750339839916,-460.0,0.00022739,6]
[366622704,1750339839927,-1092.06,0.00022739,6]
[366622705,1750339839937,-460.0,0.00022739,6]
[366622706,1750339839946,-854.06,0.00022739,6]
[366622707,1750339839956,-460.0,0.00022739,6]
[366622708,1750339839967,-1034.52,0.00022739,6]
[366622710,1750339840162,-460.0,0.00022739,6]
[366622711,1750339840172,-460.0,0.00022739,6]
[366622712,1750339840182,-460.0,0.00022739,6]
[366622713,1750339840192,-674.13,0.00022739,6]
[366622714,1750339840201,-618.27,0.00022739,2]
[366622715,1750339840211,-460.0,0.00022739,6]
[366622716,1750339840221,-533.4,0.00022739,6]
[366622717,1750339840231,-460.0,0.00022739,6]
[366622718,1750339840241,-200.0,0.00022792,30]
[366622719,1750339840250,-200.0,0.00022792,30]
[366622720,1750339840260,-200.0,0.00022792,30]
[366622721,1750339840270,-200.0,0.00022792,30]
[366622722,1750339840280,-153.0,0.00022855,2]
[366622724,1750339840289,-153.0,0.00022855,2]
[366622726,1750339840299,-215.0738,0.00022858,2]
[366622728,1750339840309,-1335.92675114,0.00022866,8]
[366622730,1750339840317,-1000.0,0.00022916,2]
[366622732,1750339840327,-1000.0,0.00022916,2]
[366622734,1750339840336,-1000.0,0.00022916,2]
[366622736,1750339840345,-1001.24407792,0.00022932,2]
[366622738,1750339840355,-759.64643263,0.00022934,2]
[366622740,1750339840365,-507.33326579,0.00022934,2]
[366622742,1750339840375,-166.4972533,0.00022937,2]
[366622744,1750339840384,-1000.0,0.00022937,2]
[366622745,1750339840394,-568.60263169,0.00022942,2]
[366622747,1750339840404,-1000.0,0.00022942,2]
[366622749,1750339840413,-502.10218453,0.00022942,2]
[366622751,1750339840422,-1000.0,0.00022952,2]
[366622752,1750339840431,-1000.0,0.00022952,2]
[366622754,1750339840441,-1145.63051969,0.00023,2]
[366622756,1750339840450,-1000.0,0.00023,2]
[366622758,1750339840460,-1000.0,0.00023,2]
[366622760,1750339840470,-500.0,0.00023,2]
[366622762,1750339840480,-34205.33660058,0.00023,30]
[366622764,1750339840490,-600.0,0.00023,3]
[366622766,1750339840499,-315.52658788,0.00023,30]
[366622768,1750339840509,-1335.92675114,0.00023003,8]
[366622770,1750339840518,-460.0,0.00023013,6]
[366622772,1750339840528,-460.0,0.00023013,6]
[366622774,1750339840537,-1411.01,0.00023013,6]
[366622776,1750339840547,-460.0,0.00023013,6]
[366622778,1750339840556,-517.78,0.00023013,6]
[366622780,1750339840566,-460.0,0.00023013,6]
[366622782,1750339840576,-460.0,0.00023013,6]
[366622784,1750339840587,-460.0,0.00023013,6]
[366622785,1750339840596,-460.0,0.00023013,6]
[366622787,1750339840606,-460.0,0.00023013,6]
[366622789,1750339840615,-911.9,0.00023013,6]
[366622791,1750339840625,-1162.92,0.00023013,6]
[366622793,1750339840636,-460.0,0.00023013,6]
[366622795,1750339840646,-862.85,0.00023013,6]
[366622797,1750339840655,-460.0,0.00023013,6]
[366622799,1750339840665,-460.0,0.00023013,6]
[366622801,1750339840675,-1092.06,0.00023013,6]
[366622803,1750339840684,-460.0,0.00023013,6]
[366622805,1750339840695,-854.06,0.00023013,6]
[366622808,1750339840705,-460.0,0.00023013,6]
[366622811,1750339840714,-1034.52,0.00023013,6]
[366622813,1750339840724,-460.0,0.00023013,6]
[366622815,1750339840734,-460.0,0.00023013,6]
[366622817,1750339840743,-460.0,0.00023013,6]
[366622819,1750339840752,-674.13,0.00023013,6]
[366622821,1750339840762,-618.27,0.00023013,2]
[366622823,1750339840771,-460.0,0.00023013,6]
[366622825,1750339840780,-533.4,0.00023013,6]
[366622827,1750339840789,-460.0,0.00023013,6]
[366622829,1750339840799,-175.0,0.00023014,7]
[366622831,1750339840808,-1000.0,0.00023019,2]
[366622833,1750339840818,-505.33537395,0.00023019,2]
[366622835,1750339840827,-350.7481688,0.00023019,2]
[366622837,1750339840836,-1002.63761826,0.00023019,2]
[366622839,1750339840845,-1000.0,0.00023019,2]
[366622841,1750339840854,-504.09769393,0.00023019,2]
[366622843,1750339840864,-1000.0,0.00023019,2]
[366622845,1750339840873,-601.51839862,0.00023026,2]
[366622847,1750339840883,-1000.0,0.00023026,2]
[366622849,1750339840892,-420.0,0.00023141,2]
[366622851,1750339840902,-1335.92675114,0.00023141,8]
[366622853,1750339840912,-1008.13161699,0.00023172,2]
[366622855,1750339840924,-150.0,0.000232,5]
[366622857,1750339840934,-9719.4437684,0.000232,2]
[366622859,1750339840943,-2279.53422009,0.000232,2]
[366622861,1750339840953,-365.6169836,0.00023233,2]
[366622863,1750339840962,-365.6169836,0.00023233,2]
[366622865,1750339840973,-365.6169836,0.00023233,2]
[366622867,1750339840983,-365.6169836,0.00023233,2]
[366622869,1750339840992,-365.6169836,0.00023233,2]
[366622871,1750339841002,-367.6954988,0.00023233,2]
[366622873,1750339841011,-926.43617275,0.00023272,2]
[366622875,1750339841021,-1335.92675114,0.00023279,8]
[366622877,1750339841031,-460.0,0.00023287,6]
[366622879,1750339841041,-460.0,0.00023287,6]
[366622881,1750339841050,-1411.01,0.00023287,6]
[366622883,1750339841060,-460.0,0.00023287,6]
[366622885,1750339841070,-517.78,0.00023287,6]
[366622887,1750339841079,-460.0,0.00023287,6]
[366622889,1750339841089,-460.0,0.00023287,6]
[366622891,1750339841098,-460.0,0.00023287,6]
[366622893,1750339841107,-460.0,0.00023287,6]
[366622895,1750339841117,-460.0,0.00023287,6]
[366622897,1750339841126,-911.9,0.00023287,6]
[366622899,1750339841135,-1162.92,0.00023287,6]
[366622901,1750339841145,-460.0,0.00023287,6]
[366622903,1750339841154,-862.85,0.00023287,6]
[366622905,1750339841164,-460.0,0.00023287,6]
[366622907,1750339841174,-460.0,0.00023287,6]
[366622909,1750339841183,-1092.06,0.00023287,6]
[366622911,1750339841192,-460.0,0.00023287,6]
[366622913,1750339841201,-854.06,0.00023287,6]
[366622915,1750339841211,-460.0,0.00023287,6]
[366622917,1750339841221,-1034.52,0.00023287,6]
[366622919,1750339841230,-460.0,0.00023287,6]
[366622921,1750339841240,-460.0,0.00023287,6]
[366622923,1750339841249,-460.0,0.00023287,6]
[366622924,1750339841258,-674.13,0.00023287,6]
[366622927,1750339841267,-618.27,0.00023287,2]
[366622929,1750339841277,-460.0,0.00023287,6]
[366622931,1750339841286,-533.4,0.00023287,6]
[366622933,1750339841295,-460.0,0.00023287,6]
[366622935,1750339841305,-78948.99,0.000233,7]
[366622936,1750339841315,-1202.66,0.000233,7]
[366622938,1750339841324,-2245.3,0.000233,2]
[366622940,1750339841333,-12544.68530873,0.000233,7]
[366622942,1750339841342,-203.22399998,0.00023318,7]
[366622944,1750339841351,-268.0,0.00023323,2]
[366622946,1750339841361,-500.0,0.00023356,2]
[366622948,1750339841370,-203.22399998,0.0002337,12]
[366622950,1750339841379,-9719.4437684,0.00023375,2]
[366622952,1750339841388,-500.0,0.00023393,2]
[366622954,1750339841397,-1711.55,0.000234,7]
[366622956,1750339841407,-1335.92675114,0.00023417,9]
[366622959,1750339841416,-203.22399998,0.00023422,8]
[366622961,1750339841426,-1160.845057,0.00023454,3]
[366622962,1750339841435,-1500.0,0.00023464,2]
[366622964,1750339841444,-813.06862883,0.00023464,2]
[366622966,1750339841453,-1014.31995088,0.00023464,2]
[366622968,1750339841462,-203.22399998,0.00023474,14]
[366622970,1750339841472,-1500.0,0.00023485,2]
[366622972,1750339841482,-1500.0,0.0002349,2]
[366622974,1750339841491,-1500.0,0.000235,2]
[366622976,1750339841501,-1500.0,0.000235,2]
[366622978,1750339841510,-158.9019424,0.00023507,2]
[366622981,1750339841520,-573.8932911,0.00023507,2]
[366622982,1750339841529,-203.22399998,0.00023526,12]
[366622984,1750339841539,-1500.0,0.00023548,2]
[366622986,1750339841548,-697.15218921,0.00023548,2]
[366622988,1750339841558,-500.0,0.00023548,2]
[366622991,1750339841567,-9719.4437684,0.0002355,2]
[366622993,1750339841577,-1335.92675114,0.00023555,9]
[366622995,1750339841586,-185.2582992,0.00023561,6]
[366622997,1750339841596,-460.0,0.00023561,6]
[366622998,1750339841605,-1411.01,0.00023561,6]
[366623001,1750339841615,-460.0,0.00023561,6]
[366623002,1750339841624,-517.78,0.00023561,6]
[366623004,1750339841633,-483.17458121,0.00023561,6]
[366623006,1750339841643,-460.0,0.00023561,6]
[366623008,1750339841652,-522.50220358,0.00023561,6]
[366623010,1750339841661,-460.0,0.00023561,6]
[366623012,1750339841671,-460.0,0.00023561,6]
[366623014,1750339841680,-911.9,0.00023561,6]
[366623016,1750339841690,-1162.92,0.00023561,6]
[366623018,1750339841699,-460.0,0.00023561,6]
[366623020,1750339841708,-862.85,0.00023561,6]
[366623022,1750339841718,-460.0,0.00023561,6]
[366623024,1750339841727,-574.66417805,0.00023561,6]
[366623026,1750339841737,-1092.06,0.00023561,6]
[366623027,1750339841746,-460.0,0.00023561,6]
[366623029,1750339841755,-854.06,0.00023561,6]
[366623031,1750339841764,-460.0,0.00023561,6]
[366623033,1750339841774,-1034.52,0.00023561,6]
[366623035,1750339841784,-460.0,0.00023561,6]
[366623037,1750339841793,-460.0,0.00023561,6]
[366623039,1750339841803,-460.0,0.00023561,6]
[366623041,1750339841812,-674.13,0.00023561,6]
[366623043,1750339841822,-618.27,0.00023561,2]
[366623045,1750339841832,-460.0,0.00023561,6]
[366623047,1750339841841,-533.4,0.00023561,6]
[366623049,1750339841850,-460.0,0.00023561,6]
[366623051,1750339841860,-268.0,0.00023565,2]
[366623053,1750339841869,-160.0,0.00023567,4]
[366623055,1750339841879,-1500.0,0.00023567,2]
[366623057,1750339841888,-1500.0,0.00023567,2]
[366623059,1750339841898,-1500.0,0.00023574,2]
[366623061,1750339841907,-203.22399998,0.00023578,11]
[366623063,1750339841916,-268.0,0.00023584,2]
[366623065,1750339841930,-203.22399998,0.0002363,7]
[366623067,1750339841939,-268.0,0.00023631,2]
[366623069,1750339841948,-203.22399998,0.00023682,12]
[366623071,1750339841958,-1335.92675114,0.00023693,9]
[366623073,1750339841968,-9719.4437684,0.00023725,2]
[366623075,1750339841977,-203.22399998,0.00023734,12]
[366623077,1750339841987,-200.0,0.0002375,30]
[366623079,1750339841996,-200.0,0.0002375,30]
[366623081,1750339842006,-200.0,0.0002375,30]
[366623083,1750339842016,-200.0,0.0002375,30]
[366623085,1750339842025,-9296.39556105,0.0002376,2]
[366623087,1750339842034,-151.0,0.00023777,6]
[366623089,1750339842043,-203.22399998,0.00023786,14]
[366623091,1750339842053,-151.0,0.000238,6]
[366623093,1750339842063,-1335.92675114,0.00023831,10]
[366623095,1750339842072,-160.0,0.00023834,2]
[366623097,1750339842081,-460.0,0.00023835,6]
[366623099,1750339842090,-1411.01,0.00023835,6]
[366623101,1750339842099,-460.0,0.00023835,6]
[366623103,1750339842108,-517.78,0.00023835,6]
[366623105,1750339842117,-159.10408404,0.00023835,6]
[366623107,1750339842126,-460.0,0.00023835,6]
[366623109,1750339842135,-460.0,0.00023835,6]
[366623111,1750339842145,-911.9,0.00023835,6]
[366623113,1750339842154,-1162.92,0.00023835,6]
[366623114,1750339842164,-374.96864419,0.00023835,6]
[366623116,1750339842173,-862.85,0.00023835,6]
[366623118,1750339842183,-460.0,0.00023835,6]
[366623121,1750339842193,-1092.06,0.00023835,6]
[366623122,1750339842202,-460.0,0.00023835,6]
[366623124,1750339842212,-854.06,0.00023835,6]
[366623127,1750339842222,-460.0,0.00023835,6]
[366623128,1750339842231,-1034.52,0.00023835,6]
[366623130,1750339842241,-460.0,0.00023835,6]
[366623132,1750339842251,-460.0,0.00023835,6]
[366623135,1750339842261,-460.0,0.00023835,6]
[366623137,1750339842270,-674.13,0.00023835,6]
[366623139,1750339842280,-618.27,0.00023835,2]
[366623141,1750339842289,-460.0,0.00023835,6]
[366623143,1750339842299,-533.4,0.00023835,6]
[366623144,1750339842308,-460.0,0.00023835,6]
[366623146,1750339842317,-203.22399979,0.00023838,12]
[366623148,1750339842327,-2200.0,0.0002384,2]
[366623150,1750339842336,-168.47526753,0.00023869,2]
[366623152,1750339842345,-200.0,0.00023884,30]
[366623154,1750339842355,-200.0,0.00023884,30]
[366623156,1750339842364,-200.0,0.00023884,30]
[366623158,1750339842373,-200.0,0.00023884,30]
[366623160,1750339842383,-3642.98069841,0.0002389,2]
[366623162,1750339842392,-9526.45999452,0.0002389,2]
[366623164,1750339842402,-163919.70994057,0.0002389,2]
[366623166,1750339842411,-1029.6,0.000239,2]
[366623168,1750339842421,-2000.0,0.000239,2]
[366623170,1750339842429,-6053.50788773,0.000239,2]
[366623174,1750339842454,-2891.95071676,0.000239,2]
[366623176,1750339842465,-773.98516391,0.000239,2]
[366623177,1750339842475,-4097.70624304,0.000239,2]
[366623184,1750339842533,964.61,0.00020792,2]
[366623329,1750339844227,-772.55277191,0.00021817,2]
[366623331,1750339844239,-372.9841686,0.00021817,2]
[366623333,1750339844251,-14.26931549,0.00021817,2]
[366623335,1750339844261,-471.19677771,0.00022279,2]
[366623337,1750339844272,-645.29,0.00022279,2]
[366623340,1750339844287,-43.31947829,0.00022279,2]
[366623342,1750339844297,-1929.21,0.00022682,2]
[366623344,1750339844305,-284.83173999,0.000239,2]
[366623405,1750339846653,-0.41716377,0.000239,2]
[366623406,1750339846665,-895.47482669,0.000239,2]